bitfinex/quotes_BTCUSD_20251011
["timestamp","ask_amount","ask_price","bid_price","bid_amount"]
[1760185883139,0.53606438,112710.0,112700.0,0.00067028]
[1760185883350,0.51944654,112710.0,112700.0,0.00067028]
[1760185884013,0.51844654,112710.0,112700.0,0.00067028]
[1760185884567,0.27223323,112710.0,112700.0,0.00067028]
[1760185884732,0.44967977,112710.0,112700.0,0.00067028]
[1760185890271,0.44767977,112710.0,112700.0,0.00067028]
[1760185891476,0.51291833,112710.0,112700.0,0.00067028]
[1760185893392,0.52952984,112710.0,112700.0,0.00067028]
[1760185893692,0.55968174,112710.0,112700.0,0.00067028]
[1760185893877,0.56068174,112710.0,112700.0,0.00067028]
[1760185894017,0.56168174,112710.0,112700.0,0.00067028]
[1760185894218,0.56068174,112710.0,112700.0,0.00067028]
[1760185894755,0.55968174,112710.0,112700.0,0.00067028]
[1760185895089,0.56168174,112710.0,112700.0,0.00067028]
[1760185895830,0.49644318,112710.0,112700.0,0.00067028]
[1760185897105,0.49544318,112710.0,112700.0,0.00067028]
[1760185897555,0.51944317,112710.0,112700.0,0.00067028]
[1760185897774,0.53959981,112710.0,112700.0,0.00067028]
[1760185897976,0.56630316,112710.0,112700.0,0.00067028]
[1760185898155,0.64073408,112710.0,112700.0,0.00067028]
[1760185898684,0.64273408,112710.0,112700.0,0.00067028]
[1760185899281,0.64073408,112710.0,112700.0,0.00067028]
[1760185899672,0.64273408,112710.0,112700.0,0.00067028]
[1760185899851,0.64173408,112710.0,112700.0,0.00067028]
[1760185900265,0.64273408,112710.0,112700.0,0.00067028]
[1760185900480,0.64173408,112710.0,112700.0,0.00067028]
[1760185900893,0.64373408,112710.0,112700.0,0.00067028]
[1760185901144,0.63973408,112710.0,112700.0,0.00067028]
[1760185901587,0.64373408,112710.0,112700.0,0.00067028]
[1760185902061,0.64373408,112710.0,112700.0,1e-08]
[1760185902261,0.83396153,112710.0,112700.0,1e-08]
[1760185903378,0.83196153,112710.0,112700.0,1e-08]
[1760185903570,0.83396153,112710.0,112700.0,1e-08]
[1760185903776,5.91587455,112710.0,112700.0,1e-08]
[1760185904015,5.91187455,112710.0,112700.0,1e-08]
[1760185904223,5.96193961,112710.0,112700.0,1e-08]
[1760185904440,5.93202659,112710.0,112700.0,1e-08]
[1760185905481,5.96194063,112710.0,112700.0,1e-08]
[1760185905700,5.93002659,112710.0,112700.0,1e-08]
[1760185905889,5.93302659,112710.0,112700.0,1e-08]
[1760185906422,5.93102659,112710.0,112700.0,1e-08]
[1760185906888,5.96493174,112710.0,112700.0,1e-08]
[1760185907309,5.96193174,112710.0,112700.0,1e-08]
[1760185907736,5.96493174,112710.0,112700.0,1e-08]
[1760185907948,5.91686668,112710.0,112700.0,1e-08]
[1760185908392,5.91386668,112710.0,112700.0,1e-08]
[1760185908607,0.67030315,112710.0,112700.0,1e-08]
[1760185909105,0.66730315,112710.0,112700.0,1e-08]
[1760185909538,0.66530315,112710.0,112700.0,1e-08]
[1760185909970,0.66730315,112710.0,112700.0,1e-08]
[1760185910200,0.66530315,112710.0,112700.0,1e-08]
[1760185910444,0.75602249,112710.0,112700.0,1e-08]
[1760185911097,0.51415127,112710.0,112700.0,1e-08]
[1760185911210,0.61415126,112710.0,112700.0,1e-08]
[1760185911641,0.61215126,112710.0,112700.0,1e-08]
[1760185911867,0.64430316,112710.0,112700.0,1e-08]
[1760185912070,0.54430317,112710.0,112700.0,0.02311001]
[1760185912296,0.64430316,112710.0,112700.0,0.02311001]
[1760185912713,0.64430316,112710.0,112700.0,0.03449001]
[1760185912714,0.75602249,112710.0,112700.0,0.03449001]
[1760185912925,0.6560225,112710.0,112700.0,0.03449001]
[1760185913116,0.6580225,112710.0,112700.0,0.03449001]
[1760185913415,0.6560225,112710.0,112700.0,0.03449001]
[1760185913814,0.75602249,112710.0,112700.0,0.03449001]
[1760185914057,0.6580225,112710.0,112700.0,0.03449001]
[1760185914260,0.75402249,112710.0,112700.0,0.03449001]
[1760185914656,0.56730316,112710.0,112700.0,0.03449001]
[1760185915058,0.56630316,112710.0,112700.0,0.03449001]
[1760185915475,0.56830316,112710.0,112700.0,0.03449001]
[1760185915846,0.29806993,112710.0,112700.0,0.03449001]
[1760185916048,0.27791329,112710.0,112700.0,0.03449001]
[1760185916248,0.27991329,112710.0,112700.0,0.03449001]
[1760185916467,0.34541429,112710.0,112700.0,0.03449001]
[1760185916614,0.68541429,112710.0,112700.0,0.03449001]
[1760185916820,0.70457093,112710.0,112700.0,0.03449001]
[1760185921608,0.70457797,112710.0,112700.0,0.03449001]
[1760185923208,0.63907697,112710.0,112700.0,0.03449001]
[1760185927929,0.63909121,112710.0,112700.0,0.03449001]
[1760185940155,0.77099635,112710.0,112700.0,0.03449001]
[1760185940361,0.54761418,112700.0,112690.0,0.01138]
[1760185940561,0.58340361,112700.0,112690.0,0.01138]
[1760185941190,0.70918117,112700.0,112690.0,0.01138]
[1760185941811,0.20247802,112690.0,112680.0,0.01138]
[1760185942026,0.55911081,112690.0,112680.0,0.0115311]
[1760185942182,0.57826745,112690.0,112680.0,0.0115311]
[1760185942434,0.66698679,112690.0,112680.0,0.0344311]
[1760185942593,0.69369755,112690.0,112680.0,0.0344311]
[1760185943920,0.73814287,112690.0,112680.0,0.0344311]
[1760185944521,0.74014287,112690.0,112680.0,0.0344311]
[1760185944726,0.74014287,112690.0,112680.0,0.02582332]
[1760185945130,0.70999097,112690.0,112680.0,0.00928025]
[1760185945341,0.57264567,112680.0,112670.0,0.01205823]
[1760185945552,0.69720475,112680.0,112670.0,0.01205823]
[1760185946511,0.69719805,112680.0,112670.0,0.01205823]
[1760185946955,0.69919805,112680.0,112670.0,0.01205823]
[1760185947357,0.69919805,112680.0,112670.0,0.03492823]
[1760185947916,0.58032681,112680.0,112670.0,0.03492823]
[1760185948120,0.53617018,112680.0,112670.0,0.03492823]
[1760185948700,0.56632208,112680.0,112670.0,0.03492823]
[1760185948855,0.53617018,112680.0,112670.0,0.03492823]
[1760185949667,0.56632208,112680.0,112670.0,0.03492823]
[1760185949864,0.65504142,112680.0,112670.0,0.03492823]
[1760185950898,0.6817504,112680.0,112670.0,0.03492823]
[1760185951303,0.6817504,112680.0,112670.0,0.03665495]
[1760185955625,1.1229504,112680.0,112670.0,0.03665495]
[1760185959210,1.12293617,112680.0,112670.0,0.03665495]
[1760185960181,0.7008745,112680.0,112670.0,0.03665495]
[1760185962702,0.7008745,112680.0,112670.0,0.05170495]
[1760185966219,0.61215516,112680.0,112670.0,0.05170495]
[1760185974926,0.58200326,112680.0,112670.0,0.05170495]
[1760185975643,0.61215516,112680.0,112670.0,0.05170495]
[1760185978468,0.58200326,112680.0,112670.0,0.05170495]
[1760185978701,0.61215516,112680.0,112670.0,0.05170495]
[1760185978905,0.7008745,112680.0,112670.0,0.05170495]
[1760185979553,0.61215516,112680.0,112670.0,0.05170495]
[1760185985533,1.05335516,112680.0,112670.0,0.05170495]
[1760185985951,1.1102603,112680.0,112670.0,0.05170495]
[1760185986730,1.07835515,112680.0,112670.0,0.05170495]
[1760185988921,0.84172819,112680.0,112670.0,0.05170495]
[1760185989093,1.01922197,112680.0,112670.0,0.05170495]
[1760185989749,0.99422198,112680.0,112670.0,0.05170495]
[1760185992487,0.96407008,112680.0,112670.0,0.05170495]
[1760185992690,0.50373175,112680.0,112670.0,0.05170495]
[1760185993466,0.22286493,112680.0,112670.0,0.05170495]
[1760185993746,0.56286493,112680.0,112670.0,0.05170495]
[1760185993932,0.22186493,112680.0,112670.0,0.05170495]
[1760185994270,0.20625307,112680.0,112670.0,0.05170495]
[1760185994466,0.54525307,112680.0,112670.0,0.05170495]
[1760185994872,0.54625307,112680.0,112670.0,0.05170495]
[1760185995350,0.54625307,112680.0,112670.0,0.05758286]
[1760185996397,0.54625307,112680.0,112670.0,0.05170495]
[1760186000423,0.54525307,112680.0,112670.0,0.05170495]
[1760186000626,0.54425307,112680.0,112670.0,0.05170495]
[1760186002559,0.54525307,112680.0,112670.0,0.05170495]
[1760186004277,0.54625307,112680.0,112670.0,0.05170495]
[1760186004833,0.54525307,112680.0,112670.0,0.05170495]
[1760186005201,0.54625307,112680.0,112670.0,0.05170495]
[1760186005896,0.54525307,112680.0,112670.0,0.05170495]
[1760186006104,0.54625307,112680.0,112670.0,0.05170495]
[1760186006696,0.54525307,112680.0,112670.0,0.05170495]
[1760186007069,0.54625307,112680.0,112670.0,0.05170495]
[1760186007693,0.54725307,112680.0,112670.0,0.05170495]
[1760186008116,0.54625307,112680.0,112670.0,0.05170495]
[1760186008497,0.54525307,112680.0,112670.0,0.05170495]
[1760186008895,0.54425307,112680.0,112670.0,0.05170495]
[1760186009316,0.54525307,112680.0,112670.0,0.05170495]
[1760186010354,0.54625307,112680.0,112670.0,0.05170495]
[1760186017689,0.56288126,112680.0,112670.0,0.05170495]
[1760186017909,0.63691719,112680.0,112670.0,0.05170495]
[1760186018121,0.66706909,112680.0,112670.0,0.05170495]
[1760186018755,0.68522984,112680.0,112670.0,0.05170495]
[1760186018968,0.68622984,112680.0,112670.0,0.05170495]
[1760186019406,0.68522984,112680.0,112670.0,0.05170495]
[1760186020310,0.6852377,112680.0,112670.0,0.05170495]
[1760186020564,0.6842377,112680.0,112670.0,0.05170495]
[1760186020809,0.6852377,112680.0,112670.0,0.05170495]
[1760186021049,0.6872377,112680.0,112670.0,0.05170495]
[1760186024386,0.71223769,112680.0,112670.0,0.04362605]
[1760186024595,0.72808769,112680.0,112670.0,0.02075605]
[1760186026150,0.54766144,112670.0,112660.0,0.01168]
[1760186026349,0.67217758,112670.0,112660.0,0.01168]
[1760186026980,0.69888991,112670.0,112660.0,0.01168]
[1760186027363,0.69988991,112670.0,112660.0,0.01168]
[1760186027713,0.70187245,112670.0,112660.0,0.01168]
[1760186029248,0.71692245,112670.0,112660.0,0.01168]
[1760186029461,0.70187245,112670.0,112660.0,0.01168]
[1760186030389,0.72864245,112670.0,112660.0,0.01168]
[1760186030599,5.82777244,112670.0,112660.0,0.01168]
[1760186030906,5.80364244,112670.0,112660.0,0.01168]
[1760186031408,5.80164244,112670.0,112660.0,0.01168]
[1760186031769,5.80064244,112670.0,112660.0,0.01225572]
[1760186031934,5.80264244,112670.0,112660.0,0.01225572]
[1760186033376,5.82677244,112670.0,112660.0,0.01225572]
[1760186034142,5.80264244,112670.0,112660.0,0.01225572]
[1760186034591,5.77587244,112670.0,112660.0,0.01225572]
[1760186035770,5.80264244,112670.0,112660.0,0.01225572]
[1760186036769,5.80264244,112670.0,112620.0,0.07162362]
[1760186036770,0.17752529,112660.0,112620.0,0.07162362]
[1760186037001,0.17752529,112660.0,112600.0,0.07162362]
[1760186037002,0.51760412,112610.0,112600.0,0.07162362]
[1760186037219,0.51760412,112610.0,112600.0,0.07092997]
[1760186037664,0.54432302,112610.0,112600.0,0.07092997]
[1760186037884,0.54432302,112610.0,112580.0,0.08090619]
[1760186037885,0.51763566,112590.0,112580.0,0.07202362]
[1760186038331,0.51763566,112590.0,112580.0,0.07252772]
[1760186038553,0.51763566,112590.0,112580.0,0.0009041]
[1760186038777,0.54435516,112590.0,112580.0,0.0009041]
[1760186040093,0.3667195,112590.0,112580.0,0.17855554]
[1760186040314,0.54435516,112590.0,112580.0,0.17855554]
[1760186043480,0.3667195,112590.0,112580.0,0.17855554]
[1760186043911,0.3667195,112590.0,112580.0,0.18316478]
[1760186044946,0.3667195,112590.0,112580.0,0.21331668]
[1760186045156,0.34,112590.0,112580.0,0.21331668]
[1760186055533,0.32786387,112590.0,112580.0,0.21331668]
[1760186059756,0.50549953,112590.0,112580.0,0.18316478]
[1760186060290,0.32786387,112590.0,112580.0,0.18316478]
[1760186066944,0.32786387,112590.0,112580.0,0.25087755]
[1760186067572,0.50549953,112590.0,112580.0,0.00551334]
[1760186067776,0.50549953,112590.0,112580.0,0.01199352]
[1760186068068,0.53222107,112590.0,112580.0,0.01199352]
[1760186069666,0.53222107,112590.0,112580.0,0.18964496]
[1760186069825,0.2043572,112590.0,112580.0,0.18316478]
[1760186071693,0.2043572,112590.0,112580.0,0.00551334]
[1760186071911,0.2043572,112590.0,112580.0,0.18962909]
[1760186072111,0.5443572,112590.0,112580.0,0.18316478]
[1760186077257,0.5443572,112590.0,112580.0,0.00551334]
[1760186077461,0.5443572,112590.0,112580.0,0.18913299]
[1760186077640,0.5443572,112590.0,112580.0,0.18316478]
[1760186078372,0.5443572,112590.0,112580.0,0.00551334]
[1760186078566,0.5443572,112590.0,112580.0,0.01148082]
[1760186080522,0.5443572,112590.0,112580.0,0.18913226]
[1760186080773,0.5443572,112590.0,112580.0,0.18316478]
[1760186085244,0.34278736,112590.0,112580.0,0.18316478]
[1760186085440,0.52042302,112590.0,112580.0,0.18316478]
[1760186088516,0.34278736,112590.0,112580.0,0.18316478]
[1760186088730,0.52648443,112610.0,112590.0,0.17762604]
[1760186088877,0.17761989,112600.0,112590.0,0.17762604]
[1760186089066,0.20433724,112600.0,112590.0,0.17762604]
[1760186090616,0.34,112590.0,112580.0,0.18743811]
[1760186093228,0.02671735,112600.0,112590.0,0.17763566]
[1760186094561,0.52648443,112610.0,112590.0,0.18166839]
[1760186094836,0.52648443,112610.0,112590.0,0.17763566]
[1760186095273,0.55320124,112610.0,112590.0,0.17763566]
[1760186096621,0.17761989,112600.0,112590.0,0.17763566]
[1760186097555,0.55320124,112610.0,112590.0,0.17763566]
[1760186100150,0.55320124,112610.0,112600.0,0.00345632]
[1760186100552,0.55320124,112610.0,112600.0,0.18689491]
[1760186100553,0.36671681,112610.0,112600.0,0.18689491]
[1760186100701,0.36671681,112610.0,112600.0,0.18107621]
[1760186101344,0.53666954,112610.0,112600.0,0.18107621]
[1760186106278,0.35906542,112610.0,112600.0,0.18107621]
[1760186109417,0.53666954,112610.0,112600.0,0.18107621]
[1760186110914,0.35906542,112610.0,112600.0,0.18107621]
[1760186111718,0.53666954,112610.0,112600.0,0.18107621]
[1760186115639,0.53666954,112610.0,112600.0,0.00345632]
[1760186126520,0.60809537,112610.0,112600.0,0.00345632]
[1760186126761,0.53666954,112610.0,112600.0,0.00345632]
[1760186130204,0.55330948,112610.0,112600.0,0.00345632]
[1760186130813,0.56896948,112610.0,112600.0,0.00345632]
[1760186131236,0.61138138,112610.0,112600.0,0.00345632]
[1760186131434,0.7180364,112610.0,112600.0,0.00345632]
[1760186131842,0.73719809,112610.0,112600.0,0.00345632]
[1760186132344,0.71307809,112610.0,112600.0,0.00345632]
[1760186132538,0.69741809,112610.0,112600.0,0.00345632]
[1760186132754,0.71307809,112610.0,112600.0,0.00345632]
[1760186133096,0.71407809,112610.0,112600.0,0.00345632]
[1760186133308,0.74403639,112610.0,112600.0,0.00345632]
[1760186133511,0.51763566,112590.0,112580.0,0.0009041]
[1760186134161,0.61511748,112590.0,112580.0,0.0009041]
[1760186134573,0.54436461,112590.0,112580.0,0.0009041]
[1760186136016,0.54536461,112590.0,112580.0,0.0009041]
[1760186137301,0.57551651,112590.0,112580.0,0.0009041]
[1760186137705,0.54536461,112590.0,112580.0,0.0009041]
[1760186137902,0.5921185,112590.0,112580.0,0.0009041]
[1760186138360,0.67281966,112590.0,112580.0,0.0009041]
[1760186139137,0.67281966,112590.0,112580.0,0.00205672]
[1760186140975,0.68832966,112590.0,112580.0,0.00205672]
[1760186141218,0.67281966,112590.0,112580.0,0.00205672]
[1760186141803,0.5921185,112590.0,112580.0,0.00205672]
[1760186142723,0.5619666,112590.0,112580.0,0.00205672]
[1760186142847,0.02772895,112590.0,112580.0,0.17970816]
[1760186143049,0.00094989,112610.0,112590.0,0.17763566]
[1760186143264,0.17760412,112610.0,112600.0,0.00262919]
[1760186143469,0.34,112600.0,112590.0,0.17763566]
[1760186143663,0.36671702,112600.0,112590.0,0.17763566]
[1760186143903,0.1864512,112630.0,112600.0,0.17760857]
[1760186143904,0.18646644,112630.0,112600.0,0.17760857]
[1760186144236,0.17757027,112640.0,112610.0,0.17958248]
[1760186144237,0.25807173,112640.0,112610.0,0.17958248]
[1760186144367,0.25807173,112640.0,112610.0,0.17760412]
[1760186144368,0.17757258,112630.0,112610.0,0.17760412]
[1760186144562,0.02671359,112620.0,112610.0,0.17760412]
[1760186144762,0.36671359,112620.0,112610.0,0.17760412]
[1760186144992,0.02671359,112620.0,112610.0,0.17760412]
[1760186145952,0.36671359,112620.0,112610.0,0.17760412]
[1760186146155,0.54430194,112620.0,112610.0,0.17760412]
[1760186146766,0.54430194,112620.0,112600.0,0.18648956]
[1760186146976,0.54430194,112620.0,112600.0,0.28648405]
[1760186147153,0.54430194,112620.0,112600.0,0.18648956]
[1760186147351,0.54430194,112620.0,112610.0,0.17760412]
[1760186150665,0.51758835,112620.0,112600.0,0.18648956]
[1760186152524,0.17758835,112620.0,112600.0,0.18648956]
[1760186153491,0.17760412,112610.0,112600.0,0.18648956]
[1760186154054,0.17760412,112610.0,112600.0,0.18743949]
[1760186155536,0.17760412,112610.0,112600.0,0.18843949]
[1760186155897,0.17760412,112610.0,112600.0,0.17956982]
[1760186158103,0.17760412,112610.0,112600.0,0.00194993]
[1760186159272,0.17760412,112610.0,112600.0,0.00094993]
[1760186159573,0.17760412,112610.0,112600.0,0.17856982]
[1760186159719,0.17760412,112610.0,112600.0,0.00094993]
[1760186160182,0.17760412,112610.0,112600.0,0.17856982]
[1760186161203,0.17760412,112610.0,112600.0,0.00094993]
[1760186164034,0.51189196,112610.0,112600.0,0.00094993]
[1760186164239,0.53861198,112610.0,112600.0,0.00094993]
[1760186164877,0.55512198,112610.0,112600.0,0.00094993]
[1760186165101,0.56681198,112610.0,112600.0,0.00094993]
[1760186165607,0.53861198,112610.0,112600.0,0.00094993]
[1760186166177,0.53961198,112610.0,112600.0,0.00094993]
[1760186167088,0.55612198,112610.0,112600.0,0.00094993]
[1760186167305,0.56781198,112610.0,112600.0,0.00094993]
[1760186167870,0.58438098,112610.0,112600.0,0.00094993]
[1760186168694,0.60859098,112610.0,112600.0,0.00094993]
[1760186168894,0.63874288,112610.0,112600.0,0.00094993]
[1760186169060,0.64338602,112610.0,112600.0,0.00094993]
[1760186170420,0.68749336,112610.0,112600.0,1e-08]
[1760186171613,0.68649336,112610.0,112600.0,1e-08]
[1760186171816,0.7752127,112610.0,112600.0,1e-08]
[1760186172022,0.7762127,112610.0,112600.0,1e-08]
[1760186173036,0.68749336,112610.0,112600.0,1e-08]
[1760186174373,5.73749336,112610.0,112600.0,1e-08]
[1760186174807,5.86925686,112610.0,112600.0,1e-08]
[1760186175229,5.87054025,112610.0,112600.0,1e-08]
[1760186175940,5.86954025,112610.0,112600.0,1e-08]
[1760186176371,5.96025959,112610.0,112600.0,1e-08]
[1760186178700,5.92849608,112610.0,112600.0,1e-08]
[1760186178918,5.92721269,112610.0,112600.0,1e-08]
[1760186179166,5.83849335,112610.0,112600.0,1e-08]
[1760186179612,5.83649335,112610.0,112600.0,1e-08]
[1760186180054,5.83849335,112610.0,112600.0,1e-08]
[1760186180272,5.83649335,112610.0,112600.0,1e-08]
[1760186180686,5.73649336,112610.0,112600.0,1e-08]
[1760186180887,5.92521269,112610.0,112600.0,1e-08]
[1760186181932,5.92621269,112610.0,112600.0,1e-08]
[1760186182345,5.8262127,112610.0,112600.0,1e-08]
[1760186182549,5.92621269,112610.0,112600.0,1e-08]
[1760186183699,5.8262127,112610.0,112600.0,1e-08]
[1760186184129,5.92621269,112610.0,112600.0,1e-08]
[1760186185694,5.85797621,112610.0,112600.0,1e-08]
[1760186185911,5.9579762,112610.0,112600.0,1e-08]
[1760186186121,5.8262127,112610.0,112600.0,1e-08]
[1760186186326,5.9579762,112610.0,112600.0,1e-08]
[1760186188571,5.9569762,112610.0,112600.0,1e-08]
[1760186188979,5.9589762,112610.0,112600.0,1e-08]
[1760186189373,6.00704126,112610.0,112600.0,1e-08]
[1760186189602,5.90704127,112610.0,112600.0,1e-08]
[1760186190781,6.00704126,112610.0,112600.0,1e-08]
[1760186190993,5.97527775,112610.0,112600.0,1e-08]
[1760186193437,5.92721269,112610.0,112600.0,1e-08]
[1760186194329,5.99128012,112610.0,112600.0,1e-08]
[1760186195620,5.99133471,112610.0,112600.0,1e-08]
[1760186196528,0.54778756,112590.0,112580.0,0.0009041]
[1760186196711,0.62719114,112590.0,112580.0,0.0009041]
[1760186197020,0.75602048,112590.0,112580.0,0.0009041]
[1760186197211,0.51765144,112580.0,112570.0,0.06489172]
[1760186197431,0.58979238,112580.0,112570.0,0.06494208]
[1760186197607,0.60523238,112580.0,112570.0,5.036e-05]
[1760186199482,0.60987678,112580.0,112570.0,5.036e-05]
[1760186199621,0.69959612,112580.0,112570.0,5.036e-05]
[1760186200037,0.72632816,112580.0,112570.0,5.036e-05]
[1760186201444,0.63760882,112580.0,112570.0,5.036e-05]
[1760186201642,0.61293882,112580.0,112570.0,5.036e-05]
[1760186201845,0.63785442,112580.0,112570.0,5.036e-05]
[1760186203075,0.61298442,112580.0,112570.0,5.036e-05]
[1760186203541,0.63785442,112580.0,112570.0,0.00177946]
[1760186203738,0.72657376,112580.0,112570.0,0.00177946]
[1760186203942,0.63785442,112580.0,112570.0,0.00177946]
[1760186204238,0.61298442,112580.0,112570.0,0.00177946]
[1760186204463,0.24116002,112580.0,112570.0,0.00177946]
[1760186204653,0.22205267,112580.0,112570.0,0.00177946]
[1760186205824,0.22105267,112580.0,112570.0,0.00177946]
[1760186206072,0.22105267,112580.0,112570.0,0.17944668]
[1760186206282,0.22105267,112580.0,112570.0,0.00177946]
[1760186206622,0.22105267,112580.0,112570.0,0.00457372]
[1760186207065,0.22105267,112580.0,112570.0,0.00645602]
[1760186207297,0.22105267,112580.0,112570.0,0.00177946]
[1760186209307,0.20438348,112580.0,112570.0,0.00177946]
[1760186211316,0.22101245,112580.0,112570.0,0.00177946]
[1760186212436,0.20438348,112580.0,112570.0,0.00177946]
[1760186212591,0.22100879,112580.0,112570.0,0.00177946]
[1760186213399,0.20438348,112580.0,112570.0,0.00177946]
[1760186213838,0.56100788,112580.0,112570.0,0.00177946]
[1760186215411,0.54438348,112580.0,112570.0,0.00177946]
[1760186220380,0.53676448,112580.0,112570.0,0.00177946]
[1760186226484,0.55320448,112580.0,112570.0,0.00177946]
[1760186226921,0.56502448,112580.0,112570.0,0.00177946]
[1760186227607,0.64275749,112580.0,112570.0,0.00177946]
[1760186227829,0.66560749,112580.0,112570.0,0.00177946]
[1760186228042,0.56502448,112580.0,112570.0,0.00177946]
[1760186229744,0.56602448,112580.0,112570.0,0.00177946]
[1760186230825,0.31886023,112580.0,112570.0,0.00177946]
[1760186231068,0.52292584,112580.0,112570.0,0.00177946]
[1760186231708,0.5395686,112580.0,112570.0,0.00177946]
[1760186233459,0.5167186,112580.0,112570.0,0.00177946]
[1760186233680,0.47181584,112580.0,112570.0,0.00177946]
[1760186235214,0.18121561,112580.0,112570.0,0.00177946]
[1760186235689,0.24997136,112580.0,112570.0,0.00177946]
[1760186235903,0.24897136,112580.0,112570.0,0.00177946]
[1760186236118,0.24997136,112580.0,112570.0,0.00177946]
[1760186236796,0.22712136,112580.0,112570.0,0.00177946]
[1760186237011,0.19403561,112580.0,112570.0,0.00177946]
[1760186237213,0.53403561,112580.0,112570.0,0.00177946]
[1760186237639,0.55047561,112580.0,112570.0,0.00177946]
[1760186239256,0.59178321,112580.0,112570.0,0.00177946]
[1760186239469,0.66341657,112580.0,112570.0,0.00177946]
[1760186239673,0.17766722,112570.0,112560.0,0.0004]
[1760186239885,0.2057713,112570.0,112560.0,0.0004]
[1760186240125,0.2465613,112570.0,112560.0,0.0004]
[1760186240332,0.70232322,112570.0,112560.0,0.00097649]
[1760186240542,0.62027791,112570.0,112560.0,0.00097649]
[1760186242736,0.62127791,112570.0,112560.0,0.00097649]
[1760186245154,0.64044119,112570.0,112560.0,0.00097649]
[1760186245380,0.62127791,112570.0,112560.0,0.00097649]
[1760186245560,0.70999725,112570.0,112560.0,0.00097649]
[1760186246594,0.62127791,112570.0,112560.0,0.00097649]
[1760186249549,1.06247791,112570.0,112560.0,0.00097649]
[1760186250784,1.06712289,112570.0,112560.0,0.00097649]
[1760186252181,1.06712289,112570.0,112560.0,1e-08]
[1760186252182,0.62592289,112570.0,112560.0,1e-08]
[1760186252621,0.64507071,112570.0,112560.0,1e-08]
[1760186252826,0.73379005,112570.0,112560.0,1e-08]
[1760186253896,0.64507071,112570.0,112560.0,1e-08]
[1760186256773,0.51768301,112560.0,112550.0,1e-08]
[1760186256974,0.54565316,112560.0,112550.0,1e-08]
[1760186257180,0.58644316,112560.0,112550.0,1e-08]
[1760186257390,0.58644316,112560.0,112550.0,0.00057655]
[1760186257608,0.67017431,112560.0,112550.0,0.00057655]
[1760186257829,0.69691505,112560.0,112550.0,1e-08]
[1760186258517,0.69791505,112560.0,112550.0,1e-08]
[1760186259204,0.6141839,112560.0,112550.0,1e-08]
[1760186260768,0.63334376,112560.0,112550.0,1e-08]
[1760186261849,0.66349566,112560.0,112550.0,1e-08]
[1760186263913,0.76642969,112560.0,112550.0,1e-08]
[1760186264377,0.73627779,112560.0,112550.0,1e-08]
[1760186264603,0.85514903,112560.0,112550.0,1e-08]
[1760186265747,0.85414903,112560.0,112550.0,1e-08]
[1760186266278,0.85514903,112560.0,112550.0,1e-08]
[1760186270717,0.7414297,112560.0,112550.0,1e-08]
[1760186272609,0.76642969,112560.0,112550.0,1e-08]
[1760186273610,0.74726983,112560.0,112550.0,1e-08]
[1760186273756,0.76646421,112560.0,112550.0,1e-08]
[1760186275495,0.66353018,112560.0,112550.0,1e-08]
[1760186276194,0.75224952,112560.0,112550.0,1e-08]
[1760186276391,0.66353018,112560.0,112550.0,1e-08]
[1760186276593,0.58126828,112560.0,112550.0,0.00632301]
[1760186276827,0.2220739,112560.0,112550.0,0.00632301]
[1760186277294,0.5620739,112560.0,112550.0,0.00632301]
[1760186278445,0.2220739,112560.0,112550.0,0.00632301]
[1760186278655,0.2210739,112560.0,112550.0,0.00632301]
[1760186278867,0.5610739,112560.0,112550.0,0.00632301]
[1760186279281,0.2210739,112560.0,112550.0,0.00632301]
[1760186279506,0.20442375,112560.0,112550.0,0.00632301]
[1760186279707,0.54442375,112560.0,112550.0,0.00632301]
[1760186286800,0.57144375,112560.0,112550.0,0.00632301]
[1760186287003,0.59504375,112560.0,112550.0,0.00632301]
[1760186287210,0.6418162,112560.0,112550.0,0.00632301]
[1760186287418,0.64646091,112560.0,112550.0,0.00632301]
[1760186288684,0.62286091,112560.0,112550.0,0.00632301]
[1760186289306,0.59270901,112560.0,112550.0,0.00632301]
[1760186289512,0.56568901,112560.0,112550.0,0.00632301]
[1760186290148,0.59270901,112560.0,112550.0,0.00632301]
[1760186290356,0.66828606,112560.0,112550.0,0.00632301]
[1760186290562,0.69188606,112560.0,112550.0,0.00632301]
[1760186291519,0.66828606,112560.0,112550.0,0.00632301]
[1760186291719,0.59270901,112560.0,112550.0,0.00632301]
[1760186291920,0.61630901,112560.0,112550.0,0.00632301]
[1760186292165,0.59270901,112560.0,112550.0,0.00632301]
[1760186293487,0.61630901,112560.0,112550.0,0.00632301]
[1760186293848,0.69694806,112560.0,112550.0,0.00632301]
[1760186294627,0.70159005,112560.0,112550.0,0.00632301]
[1760186296054,0.73174195,112560.0,112550.0,0.00632301]
[1760186296260,0.6511029,112560.0,112550.0,0.00632301]
[1760186298393,0.6275029,112560.0,112550.0,0.00632301]
[1760186298611,0.6511029,112560.0,112550.0,0.00632301]
[1760186300724,0.6511029,112560.0,112550.0,1e-08]
[1760186300938,0.75898473,112560.0,112550.0,1e-08]
[1760186301925,0.75998473,112560.0,112550.0,1e-08]
[1760186302518,0.78498472,112560.0,112550.0,1e-08]
[1760186303794,0.75998473,112560.0,112550.0,1e-08]
[1760186304028,0.75999798,112560.0,112550.0,1e-08]
[1760186306390,0.68834837,112560.0,112550.0,1e-08]
[1760186306598,0.59962903,112560.0,112550.0,1e-08]
[1760186306794,0.62637051,112560.0,112550.0,1e-08]
[1760186307426,0.60720802,112560.0,112550.0,1e-08]
[1760186307626,0.62636691,112560.0,112550.0,1e-08]
[1760186310161,0.60973311,112560.0,112550.0,1e-08]
[1760186310311,0.65731822,112560.0,112550.0,1e-08]
[1760186311120,0.68231821,112560.0,112550.0,1e-08]
[1760186311761,0.6513635,112560.0,112550.0,1e-08]
[1760186315559,0.62636351,112560.0,112550.0,1e-08]
[1760186316450,0.6513635,112560.0,112550.0,1e-08]
[1760186319325,0.5478507,112550.0,112540.0,1e-08]
[1760186319518,0.71509769,112550.0,112540.0,1e-08]
[1760186319729,5.89362703,112550.0,112540.0,1e-08]
[1760186319925,5.97345863,112550.0,112540.0,1e-08]
[1760186320124,0.54789807,112520.0,112510.0,1e-08]
[1760186320351,0.59588736,112520.0,112510.0,1e-08]
[1760186320554,0.61155736,112520.0,112510.0,1e-08]
[1760186320688,0.7244167,112520.0,112510.0,1e-08]
[1760186320882,0.73263039,112520.0,112510.0,1e-08]
[1760186321299,0.73263039,112520.0,112510.0,0.00050433]
[1760186322169,0.64391105,112520.0,112510.0,0.00050433]
[1760186322707,0.64391624,112520.0,112510.0,0.00050433]
[1760186323311,0.64491624,112520.0,112510.0,0.00050433]
[1760186324824,0.66991623,112520.0,112510.0,0.00050433]
[1760186324999,0.66991623,112520.0,112510.0,0.00281151]
[1760186325185,0.75863557,112520.0,112510.0,0.00281151]
[1760186325792,0.75863557,112520.0,112510.0,1e-08]
[1760186326836,0.72848367,112520.0,112510.0,1e-08]
[1760186327043,0.75863557,112520.0,112510.0,1e-08]
[1760186329044,0.75861359,112520.0,112510.0,1e-08]